bitfinex/quotes_ETHUSD_20230110
["timestamp","ask_amount","ask_price","bid_price","bid_amount"]
[1673314381048,44.61903404,1323.7,1323.6,0.19942573]
[1673314381258,44.62503404,1323.7,1323.6,0.19942573]
[1673314381571,49.87633191,1323.7,1323.6,0.19942573]
[1673314382270,49.87633191,1323.7,1323.5,0.14653802]
[1673314382271,53.17893611,1323.7,1323.5,0.14653802]
[1673314382486,20.95077893,1323.6,1323.2,0.15739287]
[1673314382697,3.79766064,1323.3,1323.2,0.15739287]
[1673314383153,11.35452064,1323.3,1323.2,0.15739287]
[1673314383380,18.91738064,1323.3,1323.2,0.15739287]
[1673314383692,11.36052064,1323.3,1323.2,0.15739287]
[1673314383916,3.80366064,1323.3,1323.2,0.15739287]
[1673314384069,3.79766064,1323.3,1323.2,0.15739287]
[1673314384277,11.35452064,1323.3,1323.2,0.15739287]
[1673314384506,11.36052064,1323.3,1323.2,0.15739287]
[1673314385667,18.91738064,1323.3,1323.2,0.15739287]
[1673314386598,25.34908477,1323.3,1323.2,0.15739287]
[1673314389004,0.006,1323.3,1323.2,0.15739287]
[1673314389216,15.17211335,1323.4,1323.2,0.15739287]
[1673314389460,18.96977399,1323.4,1323.2,0.15739287]
[1673314389655,26.52642399,1323.4,1323.2,0.15739287]
[1673314391676,34.08307399,1323.4,1323.2,0.15739287]
[1673314391891,26.52640399,1323.4,1323.2,0.15739287]
[1673314392932,18.96975399,1323.4,1323.2,0.15739287]
[1673314393596,26.52640399,1323.4,1323.2,0.15739287]
[1673314394537,3.85655399,1323.4,1323.3,7.55686]
[1673314394702,3.85055399,1323.4,1323.3,0.091]
[1673314394908,3.85055399,1323.4,1323.3,10.05686]
[1673314395237,26.51942399,1323.4,1323.3,0.091]
[1673314395457,26.51942399,1323.4,1323.2,0.15739287]
[1673314395458,26.52542399,1323.4,1323.2,0.15739287]
[1673314397339,34.08171399,1323.4,1323.2,0.15739287]
[1673314397660,26.52542399,1323.4,1323.2,0.15739287]
[1673314399377,18.91138064,1323.3,1323.2,0.15739287]
[1673314399532,26.47424064,1323.3,1323.2,0.15739287]
[1673314400624,18.91738064,1323.3,1323.2,0.15739287]
[1673314401637,11.36052064,1323.3,1323.2,0.15739287]
[1673314401896,3.80366064,1323.3,1323.2,0.15739287]
[1673314402053,3.79766064,1323.3,1323.2,0.15739287]
[1673314402272,34.02510064,1323.3,1323.2,0.15739287]
[1673314402526,26.47424064,1323.3,1323.2,0.15739287]
[1673314405154,34.03110064,1323.3,1323.2,0.15739287]
[1673314405328,27.59978905,1323.3,1323.2,0.15739287]
[1673314405680,26.47424064,1323.3,1323.2,0.15739287]
[1673314405845,27.59978905,1323.3,1323.2,0.15739287]
[1673314406699,26.47424064,1323.3,1323.2,0.15739287]
[1673314407469,27.59978905,1323.3,1323.2,0.15739287]
[1673314409989,29.28811167,1323.3,1323.2,0.15739287]
[1673314410524,37.97072113,1323.3,1323.2,0.15739287]
[1673314410826,36.84616028,1323.3,1323.2,0.15496407]
[1673314411946,35.71942326,1323.3,1323.2,0.15496407]
[1673314413010,36.84621945,1323.3,1323.2,0.15496407]
[1673314413872,29.28935945,1323.3,1323.2,0.15496407]
[1673314414048,28.16256326,1323.3,1323.2,0.15496407]
[1673314414871,29.28930949,1323.3,1323.2,0.15496407]
[1673314415238,6.61873514,1323.3,1323.2,0.15496407]
[1673314415454,14.17559514,1323.3,1323.2,0.15496407]
[1673314415629,12.48727252,1323.3,1323.2,0.15496407]
[1673314416664,4.93041252,1323.3,1323.2,0.15496407]
[1673314416890,4.92441252,1323.3,1323.2,0.15496407]
[1673314417969,6.22641252,1323.3,1323.2,0.15496407]
[1673314418147,5.10566064,1323.3,1323.2,7.71239407]
[1673314418501,5.10566064,1323.3,1323.2,9.35712605]
[1673314418663,5.10566064,1323.3,1323.2,1.79969605]
[1673314419029,5.10566064,1323.3,1323.2,1.70869605]
[1673314419232,6.23241252,1323.3,1323.2,1.70869605]
[1673314419663,5.10566064,1323.3,1323.2,1.70869605]
[1673314419834,6.23241252,1323.3,1323.2,1.70869605]
[1673314421105,5.10566064,1323.3,1323.2,16.82355605]
[1673314421318,5.10566064,1323.3,1323.2,9.35712605]
[1673314421524,5.10566064,1323.3,1323.2,1.79969605]
[1673314421716,5.10566064,1323.3,1323.2,1.70869605]
[1673314422802,6.23241252,1323.3,1323.2,1.70869605]
[1673314423019,5.10566064,1323.3,1323.2,9.26612605]
[1673314423230,5.10566064,1323.3,1323.2,9.35712605]
[1673314423783,5.10566064,1323.3,1323.2,16.91455605]
[1673314424087,5.10566064,1323.3,1323.2,24.47198605]
[1673314425052,5.10566064,1323.3,1323.2,26.34719953]
[1673314425196,1.23964523,1323.4,1323.2,27.71119953]
[1673314425565,0.05289335,1323.4,1323.3,3.864]
[1673314425806,0.05289335,1323.4,1323.3,29.98074701]
[1673314425932,0.05289335,1323.4,1323.3,30.07174701]
[1673314426359,0.05289335,1323.4,1323.3,32.88473662]
[1673314426686,2.8150745,1323.6,1323.5,1.39289333]
[1673314426896,4.92441252,1323.6,1323.5,16.50433333]
[1673314427225,4.92441252,1323.6,1323.5,19.39684466]
[1673314427226,6.61273514,1323.6,1323.5,19.39684466]
[1673314427428,4.93041252,1323.6,1323.5,19.39684466]
[1673314427645,4.92441252,1323.6,1323.5,26.95256466]
[1673314428064,4.92441252,1323.6,1323.5,28.30756466]
[1673314429294,2.8810745,1323.7,1323.5,28.30756466]
[1673314429503,6.61273514,1323.7,1323.5,28.30756466]
[1673314429714,6.61873514,1323.7,1323.5,28.30756466]
[1673314431088,1.13275188,1323.7,1323.5,35.86328466]
[1673314431334,1.12675188,1323.7,1323.5,35.86328466]
[1673314431660,2.8150745,1323.7,1323.5,35.86328466]
[1673314431819,1.12675188,1323.7,1323.5,35.86328466]
[1673314433968,1.19275188,1323.9,1323.6,2.717]
[1673314434182,0.04697352,1324.0,1323.7,0.23]
[1673314434394,1.1737254,1324.0,1323.7,22.89374]
[1673314434698,1.1737254,1324.0,1323.7,22.98474]
[1673314434937,1.1737254,1324.0,1323.7,27.30472912]
[1673314435401,4.97138604,1324.0,1323.8,1.364]
[1673314435842,6.65970866,1324.0,1323.8,1.364]
[1673314436017,4.97738604,1324.0,1323.8,1.364]
[1673314436230,4.97138604,1324.0,1323.8,1.364]
[1673314436667,3.84463416,1324.0,1323.8,1.364]
[1673314437010,3.84463416,1324.0,1323.8,8.91799]
[1673314437221,3.84463416,1324.0,1323.8,1.455]
[1673314437436,12.52436604,1324.0,1323.8,1.364]
[1673314437757,12.53036604,1324.0,1323.8,1.364]
[1673314437941,11.40361416,1324.0,1323.8,3.901371]
[1673314439709,11.40361416,1324.0,1323.8,11.455371]
[1673314439949,11.40361416,1324.0,1323.8,3.992371]
[1673314440122,11.40361416,1324.0,1323.8,3.901371]
[1673314440333,11.40361416,1324.0,1323.8,2.537371]
[1673314440695,3.85063416,1324.0,1323.8,10.091211]
[1673314441000,3.84463416,1324.0,1323.8,10.182211]
[1673314441164,3.84463416,1324.0,1323.8,26.654231]
[1673314441376,3.84463416,1324.0,1323.8,34.208241]
[1673314442549,3.84463416,1324.0,1323.8,26.654231]
[1673314443475,0.04697352,1324.0,1323.9,1.364]
[1673314443725,0.04697352,1324.0,1323.9,32.8687811]
[1673314443946,0.04697352,1324.0,1323.9,32.9597811]
[1673314444644,0.04697352,1324.0,1323.9,25.4063411]
[1673314447514,0.04697352,1324.0,1323.9,25.6363411]
[1673314447846,0.04697352,1324.0,1323.9,25.63248731]
[1673314448974,0.04697352,1324.0,1323.9,24.2723411]
[1673314451829,0.04697352,1324.0,1323.9,22.98132]
[1673314454459,0.24684869,1324.0,1323.9,22.98132]
[1673314456504,4.04450933,1324.0,1323.9,7.87444]
[1673314456714,4.04450933,1324.0,1323.9,0.091]
[1673314456939,19.15024933,1324.0,1323.8,11.9179]
[1673314457180,19.15624933,1324.0,1323.8,11.9179]
[1673314457355,11.60337933,1324.0,1323.8,11.9179]
[1673314457585,11.60337933,1324.0,1323.8,0.091]
[1673314457773,11.60337933,1324.0,1323.7,16.22542]
[1673314457982,26.70911933,1324.0,1323.8,0.23]
[1673314458240,11.60337933,1324.0,1323.8,0.23]
[1673314459233,11.35110064,1323.9,1323.7,0.091]
[1673314459444,3.79766064,1323.8,1323.6,12.9122]
[1673314459699,18.95568064,1323.8,1323.6,12.9122]
[1673314459909,26.46569064,1323.8,1323.6,12.9122]
[1673314460127,18.91168064,1323.8,1323.6,0.091]
[1673314460344,18.91168064,1323.8,1323.5,8.28179333]
[1673314460663,3.79766064,1323.7,1323.5,0.14389333]
[1673314460965,3.79766064,1323.7,1323.5,0.05289333]
[1673314461179,0.066,1323.8,1323.5,0.05289333]
[1673314461432,21.61221064,1323.8,1323.5,7.60860333]
[1673314461607,19.11821064,1323.8,1323.5,7.69960333]
[1673314462033,11.35771064,1323.8,1323.6,0.23]
[1673314464632,26.46581064,1323.8,1323.6,0.23]
[1673314465199,27.59256252,1323.8,1323.5,0.28289333]
[1673314467918,29.28088514,1323.8,1323.5,0.28289333]
[1673314469198,3.79766064,1323.7,1323.5,0.28289333]
[1673314469352,15.1103,1323.6,1323.5,0.28289333]
[1673314469721,13.9913972,1323.6,1323.5,0.05289333]
[1673314469931,21.5465472,1323.6,1323.5,0.05289333]
[1673314470136,0.006,1323.6,1323.5,0.05289333]
[1673314470311,11.35863064,1323.7,1323.5,0.05289333]
[1673314470530,11.35859064,1323.7,1323.5,0.05289333]
[1673314470748,3.80366064,1323.7,1323.5,0.05289333]
[1673314470964,3.79766064,1323.7,1323.5,15.16425333]
[1673314471168,3.79766064,1323.7,1323.5,7.69953333]
[1673314473294,11.35224064,1323.7,1323.5,7.69953333]
[1673314473453,11.35824064,1323.7,1323.5,7.69953333]
[1673314474403,3.79766064,1323.6,1323.5,0.14389333]
[1673314474652,5.79766064,1323.6,1323.5,0.05289333]
[1673314474831,3.80366064,1323.6,1323.5,0.05289333]
[1673314475024,3.79766064,1323.6,1323.5,0.05289333]
[1673314475235,21.97486064,1323.6,1323.5,0.05289333]
[1673314475494,23.10761252,1323.6,1323.5,0.05289333]
[1673314475702,19.48086064,1323.6,1323.5,0.05289333]
[1673314475861,20.60761252,1323.6,1323.5,0.05289333]
[1673314476084,7.09856064,1323.6,1323.5,0.05289333]
[1673314476308,14.65371064,1323.6,1323.5,0.05289333]
[1673314477022,14.65371064,1323.6,1323.5,22.72005333]
[1673314477023,4.37056064,1323.6,1323.5,22.72005333]
[1673314477238,3.79766064,1323.6,1323.5,10.72724066]
[1673314477477,3.79766064,1323.6,1323.5,0.14389333]
[1673314477694,3.79766064,1323.6,1323.5,7.60861333]
[1673314477868,3.79766064,1323.6,1323.5,7.69961333]
[1673314478541,10.19123166,1323.7,1323.5,15.25533333]
[1673314478542,8.82723166,1323.7,1323.5,15.25533333]
[1673314478710,11.9980923,1323.7,1323.5,15.25533333]
[1673314478915,11.9980923,1323.7,1323.5,0.14389333]
[1673314479279,18.9224123,1323.7,1323.5,0.05289333]
[1673314479440,20.61596418,1323.7,1323.5,0.05289333]
[1673314479914,4.3799923,1323.7,1323.5,7.60851333]
[1673314480219,4.3739923,1323.7,1323.5,7.69951333]
[1673314480804,3.8071923,1323.7,1323.5,7.69951333]
[1673314481015,3.79766064,1323.6,1323.5,7.69951333]
[1673314481435,3.79766064,1323.6,1323.5,15.25523333]
[1673314482595,18.90796064,1323.6,1323.5,0.14389333]
[1673314482939,18.90796064,1323.6,1323.5,0.05289333]
[1673314482940,28.21942987,1323.6,1323.5,0.05289333]
[1673314483155,28.78632987,1323.6,1323.5,0.05289333]
[1673314483477,21.23117987,1323.6,1323.5,0.05289333]
[1673314483691,6.12087987,1323.6,1323.5,0.05289333]
[1673314483933,13.67602987,1323.6,1323.5,0.05289333]
[1673314484535,6.12087987,1323.6,1323.5,0.05289333]
[1673314485692,8.62087987,1323.6,1323.5,0.05289333]
[1673314486058,31.28632987,1323.6,1323.5,0.05289333]
[1673314486403,23.73117987,1323.6,1323.5,0.05289333]
[1673314486587,13.67602987,1323.6,1323.5,0.05289333]
[1673314487248,21.23117987,1323.6,1323.5,0.05289333]
[1673314487463,29.91308175,1323.6,1323.5,0.05289333]
[1673314488312,28.78632987,1323.6,1323.5,0.05289333]
[1673314488505,29.91308175,1323.6,1323.5,0.05289333]
[1673314489050,22.35793175,1323.6,1323.5,0.05289333]
[1673314489266,21.23117987,1323.6,1323.5,0.05289333]
[1673314489941,22.35793175,1323.6,1323.5,0.05289333]
[1673314490175,13.67602987,1323.6,1323.5,0.05289333]
[1673314490621,6.12087987,1323.6,1323.5,0.05289333]
[1673314491203,13.67602987,1323.6,1323.5,0.05289333]
[1673314491711,14.80278175,1323.6,1323.5,0.05289333]
[1673314492029,13.67602987,1323.6,1323.5,0.05289333]
[1673314492332,14.80278175,1323.6,1323.5,0.05289333]
[1673314492562,13.67602987,1323.6,1323.5,0.05289333]
[1673314492940,6.12087987,1323.6,1323.5,0.05289333]
[1673314493334,5.73356064,1323.6,1323.5,0.05289333]
[1673314494301,20.84386064,1323.6,1323.5,0.05289333]
[1673314494513,20.84386064,1323.6,1323.5,0.05057387]
[1673314494947,21.97061252,1323.6,1323.5,0.05057387]
[1673314495437,21.40371252,1323.6,1323.5,0.05057387]
[1673314496298,13.84856252,1323.6,1323.5,0.05057387]
[1673314496701,6.29341252,1323.6,1323.5,0.05057387]
[1673314496906,4.93041252,1323.6,1323.5,0.05057387]
[1673314497159,4.92441252,1323.6,1323.5,0.05057387]
[1673314499352,4.92441252,1323.6,1323.5,1.39057387]
[1673314499353,1.12675188,1323.6,1323.5,1.39057387]
[1673314499568,10.6684745,1323.8,1323.6,1.12675188]
[1673314499791,4.93041252,1323.8,1323.7,7.55458]
[1673314500002,6.61273514,1323.8,1323.7,7.64558]
[1673314500197,6.61273514,1323.8,1323.7,10.03375819]
[1673314500198,4.93041252,1323.8,1323.7,10.03375819]
[1673314500425,4.92441252,1323.8,1323.7,10.03375819]
[1673314501397,6.61273514,1323.8,1323.7,10.03375819]
[1673314501556,4.93041252,1323.8,1323.7,17.58833819]
[1673314501770,4.92441252,1323.8,1323.7,25.14291819]
[1673314501979,3.79766064,1323.8,1323.7,27.01736549]
[1673314502349,2.8810745,1323.9,1323.7,27.01737621]
[1673314502556,1.12675188,1323.9,1323.7,26.73691819]
[1673314502801,1.12675188,1323.9,1323.7,27.86621259]
[1673314503080,1.12675188,1323.9,1323.8,2.01245218]
[1673314503256,1.12675188,1323.9,1323.8,18.48449322]
[1673314503470,1.12675188,1323.9,1323.8,16.57549322]
[1673314503695,5.48598326,1323.9,1323.8,0.091]
[1673314503910,5.48598326,1323.9,1323.6,7.47657169]
[1673314503911,14.17353228,1323.9,1323.6,7.47657169]
[1673314504081,4.92576966,1323.8,1323.6,4.52557169]
[1673314504291,4.92576966,1323.8,1323.6,16.23694188]
[1673314504496,4.92576966,1323.8,1323.6,21.57710448]
[1673314505658,4.92576966,1323.8,1323.6,14.02195448]
[1673314506308,4.92576966,1323.8,1323.6,21.57710448]
[1673314508018,4.92576966,1323.8,1323.6,29.13225448]
[1673314508538,4.92576966,1323.8,1323.6,21.57710448]
[1673314508850,6.61409228,1323.8,1323.6,21.57710448]
[1673314509089,6.62009228,1323.8,1323.6,21.57710448]
[1673314509863,6.62009228,1323.8,1323.6,29.13225448]
[1673314510070,6.62009228,1323.8,1323.6,21.57710448]
[1673314510282,1.12810902,1323.7,1323.6,21.57710448]
[1673314510520,1.12810902,1323.7,1323.6,1.21775188]
[1673314510752,1.12810902,1323.7,1323.6,1.12675188]
[1673314511581,1.12810902,1323.7,1323.6,8.68190188]
[1673314511745,1.12810902,1323.7,1323.6,8.77290188]
[1673314512728,1.12810902,1323.7,1323.6,1.21775188]
[1673314512937,1.12810902,1323.7,1323.6,1.12675188]
[1673314513114,1.12810902,1323.7,1323.6,8.68190188]
[1673314513334,1.12810902,1323.7,1323.6,8.77290188]
[1673314518311,1.12810902,1323.7,1323.6,16.32805188]
[1673314518997,1.12810902,1323.7,1323.6,8.77290188]
[1673314520394,14.23414228,1323.8,1323.6,8.77290188]
[1673314520616,14.17414228,1323.8,1323.6,8.77290188]
[1673314520832,14.17414228,1323.8,1323.6,1.21775188]
[1673314521150,14.17414228,1323.8,1323.6,1.12675188]
[1673314521359,1.12810902,1323.7,1323.6,1.12675188]
[1673314521575,14.23414228,1323.8,1323.6,1.12675188]
[1673314521801,6.62009228,1323.8,1323.6,8.68178188]
[1673314521940,6.62009228,1323.8,1323.6,8.77278188]
[1673314523828,14.17414228,1323.8,1323.6,8.77278188]
[1673314524878,6.62009228,1323.8,1323.6,8.77278188]
[1673314525086,4.93176966,1323.8,1323.6,27.52028907]
[1673314525319,4.92576966,1323.8,1323.6,27.52028907]
[1673314526561,3.79766064,1323.8,1323.6,27.51745527]
[1673314527762,3.4586633,1323.9,1323.6,37.88441256]
[1673314527996,3.4586633,1323.9,1323.6,39.24841256]
[1673314527997,7.19032394,1323.9,1323.6,39.24841256]
[1673314528152,2.82243164,1323.9,1323.7,2.5]
[1673314528501,2.81643164,1323.9,1323.8,22.66203]
[1673314528667,1.12810902,1323.9,1323.8,22.75303]
[1673314530028,1.12810902,1323.9,1323.8,7.64501]
[1673314530660,1.12810902,1323.9,1323.8,9.00901]
[1673314530870,11.99478033,1324.0,1323.8,26.94624313]
[1673314531092,15.73244097,1324.0,1323.8,26.94624313]
[1673314531323,0.81954869,1324.0,1323.9,1.357]
[1673314531502,0.24684869,1324.0,1323.9,1.357]
[1673314531871,0.24684869,1324.0,1323.9,31.57076]
[1673314532030,0.24684869,1324.0,1323.9,35.24725731]
[1673314532795,0.04830874,1324.1,1323.9,35.24725731]
[1673314538012,0.04830874,1324.1,1324.0,1.364]
[1673314538279,0.04830874,1324.1,1324.0,24.02261]
[1673314538586,0.04830874,1324.1,1324.0,24.11361]
[1673314538748,0.04830874,1324.3,1324.0,28.641315]
[1673314538966,0.04830874,1324.3,1324.2,1.361]
[1673314539175,0.04830874,1324.3,1324.2,24.01616]
[1673314539420,3.84596938,1324.3,1324.2,0.091]
[1673314539638,3.84596938,1324.3,1324.2,0.01]
[1673314539987,11.39711938,1324.3,1324.0,29.36951]
[1673314540177,11.40311938,1324.3,1324.0,34.117086]
[1673314542223,0.05,1324.1,1324.0,34.117086]
[1673314542432,11.40311938,1324.3,1324.0,37.117086]
[1673314542644,11.40311938,1324.3,1324.0,41.669956]
[1673314543892,18.95426938,1324.3,1324.0,34.117086]
[1673314544108,11.40311938,1324.3,1324.0,41.669956]
[1673314544621,11.40311938,1324.3,1324.0,49.222826]
[1673314544982,3.85196938,1324.3,1324.0,49.222826]
[1673314545246,3.84596938,1324.3,1324.0,41.669956]
[1673314545552,11.39712938,1324.3,1324.0,41.669956]
[1673314545765,11.40312938,1324.3,1324.0,41.669956]
[1673314545986,3.85196938,1324.3,1324.0,49.222826]
[1673314546294,3.84596938,1324.3,1324.0,49.222826]
[1673314546456,6.34596938,1324.3,1324.0,49.222826]
[1673314546668,3.85196938,1324.3,1324.0,49.222826]
[1673314546880,3.84596938,1324.3,1324.0,49.222826]
[1673314548824,6.34596938,1324.3,1324.0,49.222826]
[1673314548996,6.35196938,1324.3,1324.0,49.222826]
[1673314549355,3.85196938,1324.3,1324.0,49.222826]
[1673314549659,3.84596938,1324.3,1324.0,49.222826]
[1673314550801,3.84596938,1324.3,1324.0,56.775696]
[1673314551031,3.84596938,1324.3,1324.1,1.361]
[1673314551210,0.04830874,1324.3,1324.2,30.20688]
[1673314551408,0.04830874,1324.3,1324.2,30.29788]
[1673314552583,0.04830874,1324.3,1324.2,22.74616]
[1673314554368,0.04830874,1324.3,1324.2,33.24188]
[1673314554572,0.04830874,1324.3,1324.2,37.14743496]
[1673314558906,0.0593585,1324.4,1324.2,45.53573496]
[1673314559115,0.0593585,1324.4,1324.3,2.927]
[1673314559321,0.0593585,1324.4,1324.3,25.58045]
[1673314559548,0.0593585,1324.4,1324.3,25.67145]
[1673314559721,0.0593585,1324.4,1324.3,31.5399525]
[1673314560120,0.0593585,1324.4,1324.3,39.0911025]
[1673314568439,0.0593585,1324.4,1324.3,43.4551025]
[1673314568689,0.05273345,1324.5,1324.3,53.04629379]
[1673314569002,0.05273345,1324.5,1324.4,9.89350193]
[1673314569318,0.05273345,1324.5,1324.4,35.35931679]
[1673314569635,0.05273345,1324.5,1324.4,37.76107501]
[1673314569842,0.05273345,1324.5,1324.4,59.57356941]
[1673314570367,0.057671,1324.8,1324.6,30.19776]
[1673314570593,0.057671,1324.8,1324.7,2.934]
[1673314570741,0.057671,1324.8,1324.7,27.529398]
[1673314570947,0.057671,1324.8,1324.7,27.620398]
[1673314572214,1e-06,1324.8,1324.7,27.620398]
[1673314572840,0.06461327,1324.9,1324.8,8.890299]
[1673314573064,0.06461327,1324.9,1324.8,0.092999]
[1673314573307,0.06461327,1324.9,1324.8,0.001999]
[1673314573469,1.40461327,1324.9,1324.8,0.001999]
[1673314573679,10.08045229,1324.9,1324.8,0.001999]
[1673314573936,25.18191229,1324.9,1324.8,0.001999]
[1673314574152,30.05776495,1324.9,1324.8,0.001999]
[1673314574323,38.75514701,1324.9,1324.8,0.001999]
[1673314574524,42.13432302,1324.9,1324.8,0.001999]
[1673314574733,42.13432302,1324.9,1324.5,0.15540006]
[1673314574734,42.88302515,1324.9,1324.5,0.15540006]
[1673314574971,22.64832,1324.6,1324.5,0.15540006]
[1673314575180,26.31840613,1324.6,1324.5,0.15540006]
[1673314575400,13.71952613,1324.6,1324.5,0.15540006]
[1673314576320,11.21952613,1324.6,1324.5,0.15540006]
[1673314576539,10.09506064,1324.6,1324.5,0.15540006]
[1673314576848,11.21952613,1324.6,1324.5,0.15540006]
[1673314577048,26.31840613,1324.6,1324.5,0.15540006]
[1673314577247,11.21952613,1324.6,1324.5,0.15540006]
[1673314577457,26.31840613,1324.6,1324.5,0.15540006]
[1673314578618,33.86784613,1324.6,1324.5,0.15540006]
[1673314578827,26.31840613,1324.6,1324.5,0.15540006]
[1673314579087,33.86784613,1324.6,1324.5,0.15540006]
[1673314581252,11.21952613,1324.6,1324.5,0.15540006]
[1673314582345,18.76896613,1324.6,1324.5,0.15540006]
[1673314583390,26.31840613,1324.6,1324.5,0.15540006]
[1673314584198,33.86784613,1324.6,1324.5,0.15540006]
[1673314584619,26.31840613,1324.6,1324.5,0.15540006]
[1673314586082,33.86784613,1324.6,1324.5,0.15540006]
[1673314586606,30.86784613,1324.6,1324.5,0.15540006]
[1673314587254,32.55454437,1324.6,1324.5,0.15540006]
[1673314588599,40.10398437,1324.6,1324.5,0.15540006]
[1673314588810,32.55454437,1324.6,1324.5,0.15540006]
[1673314589178,31.43007888,1324.6,1324.5,0.15540006]
[1673314593647,33.67900986,1324.6,1324.5,0.15540006]
[1673314594326,6.05675888,1324.6,1324.5,0.15540006]
[1673314594520,6.61694465,1324.6,1324.5,0.15540006]
[1673314594693,4.93024641,1324.6,1324.5,0.15540006]
[1673314594904,4.92424641,1324.6,1324.5,22.80543006]
[1673314595153,4.92424641,1324.6,1324.5,25.17697307]
[1673314595533,4.92424641,1324.6,1324.5,10.07695307]
[1673314595739,4.92424641,1324.6,1324.5,2.52694307]
[1673314596002,4.92424641,1324.6,1324.5,2.43594307]
[1673314597488,3.79766064,1324.6,1324.5,2.43594307]
[1673314597661,4.92424641,1324.6,1324.5,2.43594307]
[1673314597874,1.12658577,1324.6,1324.5,2.43594307]
[1673314598098,9.8775399,1324.7,1324.5,2.43594307]
[1673314598099,2.87928401,1324.7,1324.5,17.53596307]
[1673314598435,2.87928401,1324.7,1324.5,17.62467406]
[1673314598436,6.61094465,1324.7,1324.5,17.62467406]
[1673314598595,6.61694465,1324.7,1324.5,25.17468406]
[1673314599332,1.13258577,1324.7,1324.5,28.8124518]
[1673314599542,3.99562922,1324.8,1324.6,0.23]
[1673314599543,1.12668775,1324.8,1324.6,0.23]
[1673314599758,1.18268775,1324.8,1324.6,3.86147664]
[1673314599956,1.18268775,1324.8,1324.6,1.81666407]
[1673314600168,0.056,1324.8,1324.6,1.81666407]
[1673314600432,0.056,1324.8,1324.6,6.81214071]
[1673314600750,1.12668775,1324.9,1324.6,29.55110071]
[1673314601381,1.12668775,1324.9,1324.6,22.00166071]
[1673314601741,1.12668775,1324.9,1324.6,14.45223071]
[1673314602207,1.12668775,1324.9,1324.6,10.82075407]
[1673314602827,8.67444775,1324.9,1324.6,10.82075407]
[1673314603011,8.68044775,1324.9,1324.6,3.27166407]
[1673314603233,25.46600751,1324.9,1324.6,1.81666407]
[1673314604909,16.22817775,1324.9,1324.6,1.58666407]
[1673314605078,16.22817775,1324.9,1324.6,9.13608407]
[1673314605240,1.13268775,1324.9,1324.6,9.22708407]
[1673314605459,1.12668775,1324.9,1324.6,24.32596407]
[1673314606182,8.67448775,1324.9,1324.6,24.32596407]
[1673314606445,16.22828775,1324.9,1324.6,24.32596407]
[1673314606607,8.68048775,1324.9,1324.6,24.32596407]
[1673314607282,8.68048775,1324.9,1324.6,16.77652407]
[1673314608322,0.05,1324.7,1324.6,16.77652407]
[1673314610328,23.77659775,1324.9,1324.6,16.77652407]
[1673314610551,0.006,1324.9,1324.7,0.23]
[1673314610704,1.19554938,1325.0,1324.8,7.5483]
[1673314610909,1.19554938,1325.0,1324.8,10.176773]
[1673314611241,1.19554938,1325.0,1324.8,17.725073]
[1673314611242,0.06886163,1325.0,1324.8,17.725073]
[1673314611447,1.19554938,1325.0,1324.8,19.089073]
[1673314611795,1.19554938,1325.0,1324.8,11.540773]
[1673314612336,0.06886163,1325.0,1324.8,11.540773]
[1673314612849,0.06886163,1325.0,1324.8,26.637373]
[1673314613058,0.06886163,1325.0,1324.8,19.089073]
[1673314613220,0.06886163,1325.0,1324.8,30.26884964]
[1673314613556,0.06886163,1325.0,1324.8,26.637373]
[1673314613903,0.06886163,1325.0,1324.8,3.992543]
[1673314614115,0.06886163,1325.0,1324.8,3.901543]
[1673314614481,0.11886163,1325.0,1324.8,18.997723]
[1673314614687,0.06886163,1325.0,1324.8,26.637023]
[1673314617996,0.06886163,1325.0,1324.9,1.364]
[1673314618215,0.06886163,1325.0,1324.9,4.1641023]
[1673314618797,0.12086163,1325.0,1324.9,4.1641023]
[1673314619007,0.11886163,1325.0,1324.9,4.1641023]
[1673314620529,0.11886163,1325.0,1324.9,11.7118323]
[1673314620675,0.11886163,1325.0,1324.9,11.8028323]
[1673314620890,0.06886163,1325.0,1324.9,11.8028323]
[1673314621623,1e-08,1325.0,1324.9,24.32819]
[1673314623723,1e-08,1325.0,1324.9,27.95966664]
[1673314624072,1e-08,1325.0,1324.9,24.32819]
[1673314624685,1e-08,1325.0,1324.9,27.95966664]
[1673314624901,0.07044249,1325.1,1325.0,3.84199999]
[1673314625115,0.07044249,1325.1,1325.0,29.43847999]
[1673314625331,0.07044249,1325.1,1325.0,29.52947999]
[1673314627895,0.07044249,1325.1,1325.0,27.02947999]
[1673314628056,0.07044249,1325.1,1325.0,14.93515999]
[1673314628261,0.07044249,1325.1,1325.0,19.92338715]
[1673314628594,0.07044249,1325.1,1325.0,27.47054715]
[1673314629467,0.07044249,1325.1,1325.0,26.10654715]
[1673314630608,0.07044249,1325.1,1325.0,18.55938715]
[1673314630938,0.07044249,1325.1,1325.0,11.01222715]
[1673314631149,0.07044249,1325.1,1325.0,9.65122715]
[1673314631366,22.71024249,1325.1,1325.0,5.08122715]
[1673314631575,22.71624249,1325.1,1325.0,0.32299999]
[1673314631736,0.006,1325.1,1325.0,37.90293173]
[1673314632105,0.0704544,1325.3,1325.0,48.33386591]
[1673314632259,0.0704544,1325.3,1325.2,1.359]
[1673314632473,0.0704544,1325.3,1325.2,7.65666064]
[1673314632791,0.0704544,1325.3,1325.2,31.96875064]
[1673314633250,0.0704544,1325.3,1325.2,35.60022728]
[1673314633414,0.0704544,1325.3,1325.2,41.02004401]
[1673314633623,0.0704544,1325.3,1325.2,29.84253737]
[1673314634057,0.0704544,1325.3,1325.2,37.38856737]
[1673314634597,0.0704544,1325.3,1325.2,40.38856737]
[1673314634813,0.0704544,1325.3,1325.2,44.02004401]
[1673314635271,0.0704544,1325.3,1325.2,40.38856737]
[1673314635448,0.0704544,1325.3,1325.2,44.02004401]
[1673314635655,0.0704544,1325.3,1325.2,40.38856737]
[1673314637319,0.0704544,1325.3,1325.2,44.02004401]
[1673314637537,0.0704544,1325.3,1325.2,40.38856737]
[1673314638380,0.0704544,1325.3,1325.2,51.56607401]
[1673314638606,0.0704544,1325.3,1325.2,47.93459737]
[1673314641055,0.7349002,1325.4,1325.3,1.4809088]
[1673314641272,0.7349002,1325.4,1325.3,26.69487893]
[1673314641489,0.7349002,1325.4,1325.3,49.42222989]
[1673314642166,0.7349002,1325.4,1325.3,52.22997985]
[1673314642649,0.7349002,1325.4,1325.3,49.42222989]
[1673314643931,0.7349002,1325.4,1325.3,36.76807018]
[1673314644238,0.7349002,1325.4,1325.3,34.66624144]
[1673314644393,1.25019562,1325.4,1325.3,34.66624144]
[1673314644872,1e-08,1325.5,1325.4,2.5]
[1673314645055,1e-08,1325.5,1325.4,26.35129414]
[1673314645247,1e-08,1325.5,1325.4,26.44229414]
[1673314645457,1e-08,1325.5,1325.4,26.67229414]
[1673314645898,1e-08,1325.5,1325.4,0.091]
[1673314646114,7.54432001,1325.5,1325.3,0.2319088]
[1673314646361,0.00600001,1325.5,1325.3,0.1409088]